Cogmind - Beta 14 @@@ ROGUE MODE // 2024.08.09 @ 22:42:54 Player: Jammed Result: Destroyed by B4-4QQ(R) with Subdweller Machine Gun Performance ------------- Evolutions (0) 0 Regions Visited (2) 400 Robots Destroyed (23) 115 Value Destroyed (460) 460 Prototype IDs (0) 0 Alien Tech Used (0) 0 Bonus (0) 0 TOTAL SCORE: 975 Bonus ------- None Cogmind --------- Core Integrity 0/250 Matter 279/300 Energy 100/100 System Corruption 0% Temperature Cool (0) Movement Rolling (129) Ox2 Location -10/Subcaves Parts ------- > --- POWER (1) -------- (None) > --- PROPULSION (2) --- Compact Wheel Subdweller Monowheel > --- UTILITY (2) ------ Huge Storage Unit Seismic Detector > --- WEAPON (2) ------- Battle Rifle > --- INVENTORY (25) --- Subdweller Power Source Subdweller Power Source Subdweller Power Source Light Treads Light Treads Light Treads Subdweller Monowheel High-capacity Storage Unit High-capacity Matter Pod (200) Subdweller Optics Subdweller Optics Scrap Shield Medium Laser Battle Rifle Subdweller Machine Gun Grenade Launcher Makeshift Hammer Peak State ------------ > --- POWER ------------ Ion Engine > --- PROPULSION ------- Compact Wheel Subdweller Monowheel > --- UTILITY ---------- Huge Storage Unit Seismic Detector > --- WEAPON ----------- Battle Rifle Subdweller Machine Gun > --- INVENTORY -------- Subdweller Power Source Subdweller Power Source Subdweller Power Source Light Treads Light Treads Light Treads Subdweller Monowheel High-capacity Storage Unit High-capacity Matter Pod Subdweller Optics Subdweller Optics Scrap Shield Medium Laser Battle Rifle Subdweller Machine Gun Grenade Launcher Makeshift Hammer [Rating: 13] Favorites ----------- Power Ion Engine Engine Ion Engine Propulsion Compact Wheel Leg Aluminum Leg Wheel Compact Wheel Utility Seismic Detector Device Seismic Detector Storage Huge Storage Unit Weapon Light Assault Rifle Energy Gun Medium Laser Ballistic Gun Light Assault Rifle Launcher Grenade Launcher Build | -11 -10 -10 ------- Run | Yrd Mat Sub Slots Evolved . | . . . Power . | . . . Propulsion . | . . . Utility . | . . . Weapon . | . . . Parts Attached 16 | 1 10 5 Power 1 | . 1 . Engine 1 | . 1 . Core . | . . . Reactor . | . . . Propulsion 4 | . 2 2 Treads . | . . . Leg . | . . . Wheel 4 | . 2 2 Hover . | . . . Flight . | . . . Utility 4 | 1 2 1 Device 2 | 1 1 . Storage 2 | . 1 1 Processor . | . . . Hackware . | . . . Protection . | . . . Artifact . | . . . Weapon 7 | . 5 2 Energy Gun . | . . . Energy Cannon . | . . . Ballistic Gun 6 | . 4 2 Ballistic Cannon . | . . . Launcher 1 | . 1 . Special Weapon . | . . . Impact Weapon . | . . . Slashing Weapon . | . . . Piercing Weapon . | . . . Special Melee Weapon . | . . . Unidentified Prototypes . | . . . Parts Lost 7 | . 5 2 Power 2 | . 1 1 Propulsion 1 | . 1 . Utility 1 | . 1 . Weapon 3 | . 2 1 Highest Loss Streak 2 | . 2 2 To Critical Strikes . | . . . Average Slot Usage (%) 90 | . 83 98 Engine 13 | . 12 14 Leg 3 | . 6 . Wheel 20 | . 14 26 Device 10 | . 7 14 Storage 14 | . 14 14 Energy Gun 1 | . 3 . Ballistic Gun 25 | . 23 27 Peak Build Rating 13 | 7 7 13 Average Rating 8 | 6 5 11 On Entrance 6 | 6 7 6 Naked Turns . | . . . Heaviest Build 92 | 12 48 92 Greatest Support 36 | 20 32 36 Greatest Overweight (x) 3 | . 2 3 Average Overweight (x) 1 | . . 1 Largest Inventory Capacity 25 | 8 20 25 Average Capacity 17 | 8 12 24 Most Carried 18 | 7 9 18 Average Carried 11 | 6 7 16 Final Capacity 25 | 8 20 25 Final Carried 18 | 7 9 18 Class Distribution -------------------- 100% | Mutant Dominant Class ---------------- Mutant | -10/Materials Mutant | -10/Subcaves Resources | -11 -10 -10 ----------- Run | Yrd Mat Sub Matter Collected 702 | 216 161 325 Remotely . | . . . Salvage Created 697 | 119 514 64 Parts 48 | 6 36 6 Haulers Intercepted 2 | . 2 . Recyclers Shooed 1 | 1 . . Parts Field Recycled . | . . . Retrieved Matter . | . . . Parts Self-Destructed 4 | . . 4 Prevented . | . . . Kills | -11 -10 -10 ------- Run | Yrd Mat Sub Combat Hostiles Destroyed 15 | . 13 2 Guns 11 | . 9 2 AOE 3 | . 3 . Classes Destroyed 8 | 2 5 1 Tunneler 2 | 1 1 . Hauler 2 | . 2 . Recycler 1 | 1 . . Mechanic 1 | . 1 . Watcher 2 | . 2 . Swarmer 6 | . 6 . Grunt 7 | . 7 . Subdweller 2 | . . 2 Best Kill Streak 5 | 1 5 1 Combat Bots Only 4 | . 4 1 Max Kills in Single Turn 3 | 1 3 1 Gunslinging . | . . . Exploded 3 | . 3 . Melee . | . . . Uniques/NPCs Destroyed . | . . . Combat | -11 -10 -10 -------- Run | Yrd Mat Sub Hostile Shots Fired 87 | . 65 22 Missed 16 | . 8 8 Damage Taken 930 | . 626 304 Core 264 | . 160 104 Absorbed by Shields . | . . . Regen/Repaired (Parts) 87 | . 87 . Core Remaining (%) 100 | 100 . . Volleys Fired 92 | 6 62 24 Largest 2 | 2 2 2 Hottest 70 | 70 70 55 Shots Fired 183 | 12 123 48 Gun 182 | 12 122 48 Cannon . | . . . Launcher 1 | . 1 . Special . | . . . Kinetic 142 | 6 88 48 Thermal 40 | 6 34 . Explosive 1 | . 1 . Electromagnetic . | . . . Robot Hit Streak 17 | 6 12 17 Robot Miss Streak 3 | 1 3 2 Penetration Max . | . . . Secondary Targets 1 | . 1 . Max Gunslinging Chain 1 | . 1 . Shots Hit Robots 121 | 10 83 28 Core Hits 44 | 4 34 6 Critical Kills . | . . . Critical Parts Destroyed 1 | . 1 . Critical Strikes 7 | . 7 . Burn 6 | . 6 . Destroy 1 | . 1 . Melee Attacks . | . . . Impact . | . . . Slashing . | . . . Piercing . | . . . Sneak Attacks . | . . . Combat Hostiles . | . . . Follow-up Attacks . | . . . Damage Inflicted 1310 | 103 901 306 Guns 1229 | 103 820 306 Cannons . | . . . Explosions 81 | . 81 . Melee . | . . . Ramming . | . . . Kinetic 826 | 40 480 306 Thermal 403 | 63 340 . Explosive 81 | . 81 . Electromagnetic . | . . . Impact . | . . . Slashing . | . . . Piercing . | . . . Highest Corruption . | . . . Average Corruption . | . . . Corruption Purged . | . . . Corruption Blocked . | . . . Overload Shots . | . . . Overflow Damage . | . . . Projectiles . | . . . Explosions . | . . . Melee . | . . . Knockbacks . | . . . Impact . | . . . Kinetic . | . . . Secondary . | . . . Self-Inflicted Damage . | . . . Shots . | . . . Rammed . | . . . Targets Rammed . | . . . Kicked . | . . . Crushed . | . . . Highest Temperature 254 | 70 254 . Average Temperature 104 | 33 116 . Received Heat Transfer 261 | . 234 27 Siege Activations . | . . . Robots Corrupted . | . . . Combat Hostiles . | . . . Parts Fried . | . . . Impact Corruptions . | . . . Robots Melted 1 | . 1 . Combat Hostiles 1 | . 1 . Parts Melted 8 | . 8 . Heat Transferred 1628 | 185 1443 . Parts Sabotaged . | . . . Parts Stolen . | . . . Parts Stripped . | . . . Power Chain Reactions . | . . . Alert | -11 -10 -10 ------- Run | Yrd Mat Sub Peak Influence 252 | 10 252 . Initial 6 | . 6 . Average 100 | 7 104 . Maximum Alert Level 1 | . 1 . Low Security (%) 92 | 100 92 . Level 1 7 | . 7 . Level 2 . | . . . Level 3 . | . . . Level 4 . | . . . Level 5 . | . . . High Security . | . . . Max Security . | . . . Squads Dispatched 4 | . 4 . Investigation 3 | . 3 . Extermination . | . . . Reinforcement 1 | . 1 . Assault . | . . . Garrison . | . . . Intercept . | . . . Searches Triggered . | . . . Construction Impeded . | . . . Haulers Reinforced . | . . . Active Scanning Responses . | . . . Cargo Convoy Interrupts . | . . . Stealth | -11 -10 -10 --------- Run | Yrd Mat Sub Distress Signals 2 | . 2 . Communications Jammed . | . . . Distress Signals . | . . . Times Spotted 28 | . 24 4 Peak Tracking Total 4 | . 4 2 Tactical Retreats . | . . . Traps | -11 -10 -10 ------- Run | Yrd Mat Sub Traps Triggered 2 | . 2 . Indirectly . | . . . Trap Hack Attempts . | . . . Triggered . | . . . Disarmed . | . . . Reprogrammed . | . . . Reused . | . . . Traps Extracted . | . . . Installed . | . . . Triggered . | . . . Machines | -11 -10 -10 ---------- Run | Yrd Mat Sub Machines Disabled . | . . . Max in Single Turn . | . . . Machines Repaired . | . . . Machines Dismantled . | . . . Machines Sabotaged . | . . . Overloaded Fab Kills . | . . . Hacking | -11 -10 -10 --------- Run | Yrd Mat Sub Machines Accessed 13 | . 10 3 Terminals 7 | . 7 . Fabricators . | . . . Repair Stations 1 | . 1 . Recycling Units 2 | . 2 . Scanalyzers . | . . . Garrison Access . | . . . Total Hacks 39 | . 31 8 Successful 21 | . 13 8 Failed 18 | . 18 . Catastrophic 1 | . 1 . Database Lockouts . | . . . Manual 22 | . 22 . Terminals 19 | . 19 . Fabricators . | . . . Repair Stations 6 | . 6 . Recycling Units 6 | . 6 . Scanalyzers . | . . . Garrison Access . | . . . Terminal Hacks 10 | . 2 8 Record 6 | . . 6 Robot Analysis 2 | . 2 . Open Door 1 | . . 1 Release Object 1 | . . 1 Fabricator Hacks . | . . . Repair Station Hacks 4 | . 4 . Scan Component 2 | . 2 . Repair 2 | . 2 . Recycling Unit Hacks 3 | . 3 . Report Inventory 2 | . 2 . Retrieve Components 1 | . 1 . Scanalyzer . | . . . Garrison Access Hacks . | . . . Unauthorized Hacks 4 | . 4 . Terminals 2 | . 2 . Botnet 2 | . 2 . Fabricators . | . . . Repair Stations . | . . . Recycling Units 2 | . 2 . Tunnel 2 | . 2 . Scanalyzers . | . . . Garrison Access . | . . . Data Cores Recovered . | . . . Used . | . . . Hacking Detections 9 | . 9 . Full Trace Events 1 | . 1 . Feedback Events . | . . . Feedback Blocked . | . . . Robot Schematics Acquired . | . . . Robots Built . | . . . Authchips . | . . . Time . | . . . Total Robot Build Rating . | . . . Part Schematics Acquired . | . . . Parts Built . | . . . Authchips . | . . . Time . | . . . Total Part Build Rating . | . . . Parts Repaired 2 | . 2 . Time 52 | . 52 . Parts Recycled . | . . . Recycled Matter . | . . . Retrieved Matter . | . . . Retrieved Components 3 | . 3 . Parts Scanalyzed . | . . . Part Schematics Acquired . | . . . Parts Damaged . | . . . Bothacking | -11 -10 -10 ------------ Run | Yrd Mat Sub Used RIF Installer . | . . . Robots Hacked . | . . . Non-combat . | . . . Combat . | . . . Robot Hacks Applied . | . . . Relay Couplers Released . | . . . Fabnet Peak Effective % . | . . . Robots Rewired . | . . . Allies Hacked . | . . . Hacks Repelled . | . . . Allies | -11 -10 -10 -------- Run | Yrd Mat Sub Total Allies . | . . . Largest Group . | . . . Highest-Rated Group . | . . . Highest-Rated Ally . | . . . Total Orders . | . . . Ally Attacks . | . . . Total Damage . | . . . Kills . | . . . Allies Corrupted . | . . . Allies Melted . | . . . Intel | -11 -10 -10 ------- Run | Yrd Mat Sub Robot Analysis Total 2 | . 2 . Derelict Logs Recovered 1 | . . 1 Drone Launches . | . . . Drone Recoveries . | . . . Exploration | -11 -10 -10 ------------- Run | Yrd Mat Sub Turns Passed 2338 | 57 1159 1122 Spaces Moved 1533 | 32 704 797 Core . | . . . Treads . | . . . Legs 173 | 32 141 . Wheels 1360 | . 563 797 Hover . | . . . Flight . | . . . Fastest Speed 100 | 120 100 117 Average Speed 122 | 120 114 128 Slowest Speed 145 | 120 130 145 Overloaded Moves . | . . . Propulsion Burnouts . | . . . Robots Hopped . | . . . Cave-ins Triggered . | . . . Exploration Rate (%) 46 | 3 98 39 Regions Visited 2 Branch Regions 1 Pre-discovered Areas 3 | . 2 1 Known Exits Taken . | . . . Unknown Exits Taken 2 | 1 1 . Scrap Searched 3 | . . 3 Spaces Dug . | . . . Terrain Destroyed 7 | . 7 . Melee . | . . . Projectile . | . . . AOE 7 | . 7 . Terrain Rammed . | . . . Walls Destroyed . | . . . Machines Disabled . | . . . Actions | -11 -10 -10 --------- Run | Yrd Mat Sub Total 1840 | 39 948 853 Wait 174 | . 162 12 Move 1531 | 31 703 797 Hop . | . . . Pick Up 17 | 1 6 10 Fast Attach 10 | 1 6 3 Attach 4 | . 4 . Detach 1 | . 1 . Swap 2 | . . 2 Drop 8 | . 4 4 Fire 92 | 6 62 24 Melee . | . . . Ram . | . . . Kick . | . . . Crush . | . . . Escape Stasis . | . . . Rewire . | . . . Trap . | . . . Miscellaneous 1 | . . 1 Route ------- -11/Scrapyard -10/Materials (discovered 4 exits: [*Mat x2] / [*Min] / *Sub) -10/Subcaves History --------- Turn | Location | Event 15 | -11/Scrapyard | Discovered new exit (range 2) 58 | -11/Scrapyard | Entered Materials 311 | -10/Materials | Build established: Mutant 391 | -10/Materials | Discovered new exit (range 16) 665 | -10/Materials | Core integrity fell below 50% 812 | -10/Materials | Discovered new exit (range 15) 885 | -10/Materials | Repaired Lgt. Assault Rifle 913 | -10/Materials | Repaired Lgt. Assault Rifle 1098 | -10/Materials | Discovered new exit (range 15) 1209 | -10/Materials | Discovered new exit (range 7) 1217 | -10/Materials | Entered Subcaves 1247 | -10/Subcaves | Disturbed a concealed Subdweller 1265 | -10/Subcaves | Core integrity fell below 20% 1380 | -10/Subcaves | Shifting Twisted Machinery released Battle Rifle 1395 | -10/Subcaves | Shifting Twisted Machinery released Sub. Machine Gun 1680 | -10/Subcaves | Visited Clippyterm 1684 | -10/Subcaves | Learned location of Section 7 (-2) 1684 | -10/Subcaves | Learned Factory emergency access door positions 2075 | -10/Subcaves | A swath of the cavern ceiling suddenly collapsed 2154 | -10/Subcaves | Learned Materials stockpile data 2246 | -10/Subcaves | Released subatomizers from SUBCON Basin 2280 | -10/Subcaves | A swath of the cavern ceiling suddenly collapsed 2339 | -10/Subcaves | Destroyed by B4-4QQ(R) with Subdweller Machine Gun Last Messages --------------- >>Open Door Sealed Heavy Doors opened. 02243_ Connecting with SUBCON Basin Controls... >>Record! "Subatomizer Containment" Subatomizers are really quite dangerous, especially when stimulated during the collection process in preparation for SEP insertion. Secure containment is priority number one! Although mostly just a persistent nuisance in their natural Subcaves environment where a certain balance has been achieved, there is a high probability that sudden introduction into previously unexposed areas could cause more extreme side effects. Take all precautions to prevent this from happening. >>Release Inventory Accessing inventory controls... Collection purity confirmed 100%... Ejecting SUBCON Basin... Delivery behind schedule, handle with care! 02246_ Released subatomizers from SUBCON Basin. A swath of the cavern ceiling suddenly collapses. 02332_ Ion Engine destroyed. 02338_ Sub. Machine Gun destroyed. Map ----- +----------------------------------------------------+ | ????????????????# #### #?????????????? | | ????????????????# #???? #?????????????? | | ????????????????## # # ????????????? | | ????????????????# ## ""??????????? | | ???????????????## ##?# ### ###??????????? | | ???????????????# ##???####?????#????????????? | | ???????????????# #??????????????????????????? | | ???????????????# #??????????????????????????? | | ???????????????## ##??????????????????????????? | | ???????????????###"#??????????????????????????? | | ???????????????##"##??????????????????????????? | | ????????????????#"##??????????????????????????? | | ????????????????#"##??????????????????????????? | | ???????????????##"#???????????????????????????? | | ???????????????#""#???????????????????????????? | | ???????????????#"##???????????????????????????? | | ???????????????#"##???????????????????????????? | | ???????????????## ###?????????????????????????? | | ??????????????##""""#?????????????????????????? | | ??????????????#"#"###?????????????????????????? | | ??????????????##"""#??????????????????????????? | | ??????????????#"#"##????????# ????????????????? | | ??????????????###"##???????#""""??????????????? | | ????????????????##"####???#"" ?????????????? | | ?????????????????#"##;##?# "" "????????????? | | ?????????????????#""# @##""" " ????????????? | | ?????????????????### R;# " "" ???????????? | | ???????????????????## R " "" ?????????????? | | ????????????????????# #" " " #????????????? | | ????????????????????###""### "##????????????? | | ?????????????????????? ##???? #?????????????? | | ??????????????????????# ?????????????????????? | | ??????????????????????# ?????????????????????? | | ??????????????????????# #?????????????????????? | | ??????????????????????###?????????????????????? | | ??????????????????????????????????????????????? | | ??????????????????????????????????????????????? | | ??????????????????????????????????????????????? | | ??????????????????????????????????????????????? | | ??????????????????????????????????????????????? | | ??????????????????????????????????????????????? | | ??????????????????????????????????????????????? | | ??????????????????????????????????????????????? | | ??????????????????????????????????????????????? | | ??????????????????????????????????????????????? | | ??????????????????????????????????????????????? | | ??????????????????????????????????????????????? | | ??????????????????????????????????????????????? | | ??????????????????????????????????????????????? | | ??????????????????????????????????????????????? | +----------------------------------------------------+ Best States ------------- Heat Dissipation 25 Energy Generation 10 Energy Capacity 250 Matter Stores 300 Matter Capacity 300 Sight Range 16 Terrain Scan Density 10 Evasion (%) 55 Item Schematics ----------------- None Robot Schematics ------------------ None Fabricated ------------ Nothing Alien Tech Used ----------------- None Achievements -------------- None Challenges ------------ None Game ------ Seed CobblerThermicAutopenetrator Manual? 0 Play Time 00:16:53 Cumulative 185.7 hours Start 2024.08.09 @ 22:27:54 End 2024.08.09 @ 22:42:54 Sessions 1 Manual Loads 0 Difficulty Rogue Special Mode None Game No. 119 Rogue 119 Adventurer 0 Explorer 0 Win Type - Total 2 Types 1/0/0/1/0/0/0/0/0 Lore% 57 Gallery% 59 Achievement% 57 Wizard Run 0 Options --------- Layout 0 ASCII 0 Keyboard 0 Movement Mouse Keybinds 0 Fullscreen 1 Font 18/SmallcapsGlow Map View 76x50 Zoom Use 0% Tactical HUD 1 Map Filters NONE Filters NONE Steam 1 RUN: 5731e707-c696-4376-ac76-e600a30839ba